fUST/lending_fUST_20240814
["ID","MTS","AMOUNT","RATE_DAILY","PERIOD"]
[334791462,1723572638676,-183.31414419,9.999e-05,2]
[334791463,1723572638687,-156.92027342,9.999e-05,2]
[334791464,1723572638697,-201.70451665,9.999e-05,2]
[334791465,1723572638707,-154.80649189,9.999e-05,2]
[334791466,1723572638716,-154.80649189,9.999e-05,2]
[334791467,1723572638726,-161.75286654,9.999e-05,2]
[334791468,1723572638736,-320.08358525,9.999e-05,2]
[334791469,1723572638745,-309.03701269,9.999e-05,2]
[334791470,1723572638755,-241.08007801,9.999e-05,2]
[334791471,1723572638765,-728.34861839,9.999e-05,2]
[334791473,1723572638775,-404.1964714,9.999e-05,2]
[334791475,1723572638786,-353.31929251,9.999e-05,2]
[334791477,1723572638796,-174.72672334,9.999e-05,2]
[334791479,1723572638805,-154.80649189,9.999e-05,2]
[334791481,1723572638816,-809.49275165,9.999e-05,2]
[334791483,1723572638826,-810.88959894,9.999e-05,2]
[334791485,1723572638838,-205.42133969,9.999e-05,2]
[334791486,1723572638850,-309.52024362,0.0001,2]
[334791487,1723572638861,-288.10768054,0.0001,2]
[334791488,1723572638872,-817.13111103,0.0001,2]
[334791490,1723572638883,-413.41235077,0.0001,2]
[334791492,1723572638892,-24900.0,0.00010995,2]
[334791494,1723572638902,-166.666666,0.00011468,2]
[334791495,1723572638916,-166.666666,0.00011767,2]
[334791496,1723572638926,-166.666666,0.00012065,2]
[334791497,1723572638939,-195.039737,0.00012271,2]
[334791498,1723572638950,-195.039737,0.00012301,2]
[334791499,1723572638960,-195.039737,0.00012332,2]
[334791500,1723572638971,-535.9603938,0.00012878,2]
[334791501,1723572638983,-267.9801969,0.00012878,2]
[334791502,1723572638995,-2323.0458264,0.000129,2]
[334791503,1723572639007,-267.9801969,0.00012978,2]
[334791504,1723572639017,-500.0,0.00012986,2]
[334791505,1723572639027,-267.9801969,0.00013178,2]
[334791506,1723572639036,-267.9801969,0.00013178,2]
[334791507,1723572639047,-267.9801969,0.00013178,2]
[334791508,1723572639057,-267.9801969,0.00013178,2]
[334791509,1723572639068,-150.0,0.00013184,2]
[334791510,1723572639079,-207.3665351,0.00013208,2]
[334791511,1723572639090,-207.3665351,0.00013208,2]
[334791512,1723572639099,-207.3665351,0.00013208,2]
[334791513,1723572639110,-207.3665351,0.00013208,2]
[334791514,1723572639120,-207.3665351,0.00013208,2]
[334791515,1723572639131,-153.0,0.00013229,2]
[334791516,1723572639141,-153.0,0.00013229,2]
[334791517,1723572639151,-153.0,0.00013229,2]
[334791518,1723572639163,-5323.40502986,0.00013344,2]
[334791519,1723572639174,-2323.04582633,0.00013349,2]
[334791520,1723572639185,-1381.9087858,0.0001348,2]
[334791521,1723572639196,-2000.0,0.0001349,2]
[334791522,1723572639207,-13493.0,0.000135,2]
[334791523,1723572639217,-1759.94836461,0.000135,2]
[334791524,1723572639228,-1381.90878576,0.0001351,2]
[334791525,1723572639239,-1381.90878576,0.00013539,2]
[334791526,1723572639250,-1381.90878576,0.00013569,2]
[334791527,1723572639406,-73563.1333541,0.0001357,2]
[334791528,1723572639418,-73563.1333541,0.0001358,2]
[334791529,1723572639429,-40421.97830553,0.0001358,2]
[334791530,1723572639438,-151.0,0.0001358,2]
[334791531,1723572639449,-220689.400062,0.0001358,2]
[334791532,1723572639460,-151.0,0.0001359,2]
[334791533,1723572639471,-187.745302,0.0001359,2]
[334791534,1723572639481,-187.745302,0.0001359,2]
[334791535,1723572639490,-748.268691,0.0001359,2]
[334791536,1723572639499,-748.268691,0.0001359,2]
[334791537,1723572639508,-151.0,0.0001359,2]
[334791538,1723572639519,-151.0,0.0001359,2]
[334791539,1723572639530,-151.0,0.0001359,2]
[334791540,1723572639540,-454.196424,0.0001359,2]
[334791541,1723572639552,-454.196424,0.0001359,2]
[334791542,1723572639564,-785.570447,0.0001359,2]
[334791543,1723572639573,-785.570447,0.0001359,2]
[334791544,1723572639583,-151.0,0.0001359,2]
[334791545,1723572639593,-1381.90878576,0.00013598,2]
[334791546,1723572639603,-9960.47482463,0.00013598,2]
[334791547,1723572639613,-150.112233,0.000136,2]
[334791548,1723572639624,-150.112233,0.000136,2]
[334791549,1723572639635,-32644.80255558,0.000136,2]
[334791550,1723572639647,-2900.321425,0.000136,2]
[334791551,1723572639656,-2900.321425,0.000136,2]
[334791552,1723572639675,-151.0,0.000136,2]
[334791553,1723572639688,-1266.960444,0.000136,2]
[334791554,1723572639698,-1266.960444,0.000136,2]
[334791555,1723572639710,-1999.816746,0.000136,2]
[334791556,1723572639720,-1999.816746,0.000136,2]
[334791557,1723572639731,-999.187815,0.000136,2]
[334791558,1723572639743,-999.187815,0.000136,2]
[334791559,1723572639754,-151.0,0.000136,2]
[334791560,1723572639764,-1588.656889,0.000136,2]
[334791561,1723572639775,-1588.656889,0.000136,2]
[334791562,1723572639785,-151.0,0.000136,2]
[334791563,1723572639796,-151.0,0.000136,2]
[334791564,1723572639806,-1737.397437,0.000136,2]
[334791565,1723572639816,-1737.397437,0.000136,2]
[334791566,1723572639826,-415.160745,0.000136,2]
[334791567,1723572639836,-415.160745,0.000136,2]
[334791568,1723572639846,-187.745302,0.000136,2]
[334791569,1723572639856,-187.745302,0.000136,2]
[334791570,1723572639866,-748.268691,0.000136,2]
[334791571,1723572639876,-748.268691,0.000136,2]
[334791572,1723572639885,-151.0,0.000136,2]
[334791573,1723572639895,-151.0,0.000136,2]
[334791574,1723572639905,-151.0,0.000136,2]
[334791575,1723572639919,-454.196424,0.000136,2]
[334791576,1723572639930,-454.196424,0.000136,2]
[334791577,1723572639940,-785.570447,0.000136,2]
[334791578,1723572639951,-785.570447,0.000136,2]
[334791579,1723572639962,-151.0,0.000136,2]
[334791581,1723572639972,-150.112233,0.000136,2]
[334791582,1723572639983,-150.112233,0.000136,2]
[334791583,1723572639994,-150.112233,0.000136,2]
[334791584,1723572640004,-150.112233,0.000136,2]
[334791585,1723572640014,-150.112233,0.000136,2]
[334791586,1723572640024,-150.112233,0.000136,2]
[334791587,1723572640036,-150.112233,0.000136,2]
[334791588,1723572640046,-200.0,0.00013673,2]
[334791589,1723572640055,-200.0,0.00013673,2]
[334791590,1723572640065,-200.0,0.00013673,2]
[334791591,1723572640075,-200.0,0.00013673,2]
[334791592,1723572640084,-200.0,0.00013673,2]
[334791593,1723572640096,-249.17084881,0.00013673,2]
[334791594,1723572640106,-2900.321425,0.00013678,2]
[334791595,1723572640116,-2900.321425,0.00013678,2]
[334791596,1723572640125,-151.0,0.00013678,2]
[334791597,1723572640136,-1266.960444,0.00013678,2]
[334791598,1723572640145,-1999.816746,0.00013678,2]
[334791599,1723572640155,-1266.960444,0.00013678,2]
[334791600,1723572640165,-1999.816746,0.00013678,2]
[334791601,1723572640175,-999.187815,0.00013678,2]
[334791602,1723572640184,-999.187815,0.00013678,2]
[334791603,1723572640194,-151.0,0.00013678,2]
[334791604,1723572640204,-1588.656889,0.00013678,2]
[334791605,1723572640213,-1588.656889,0.00013678,2]
[334791606,1723572640222,-151.0,0.00013678,2]
[334791608,1723572640232,-151.0,0.00013678,2]
[334791610,1723572640242,-1737.397437,0.00013678,2]
[334791611,1723572640252,-1737.397437,0.00013678,2]
[334791612,1723572640263,-415.160745,0.00013678,2]
[334791613,1723572640273,-415.160745,0.00013678,2]
[334791615,1723572640282,-187.745302,0.00013678,2]
[334791616,1723572640292,-187.745302,0.00013678,2]
[334791617,1723572640303,-748.268691,0.00013678,2]
[334791618,1723572640313,-748.268691,0.00013678,2]
[334791620,1723572640322,-151.0,0.00013678,2]
[334791622,1723572640331,-151.0,0.00013678,2]
[334791623,1723572640341,-151.0,0.00013678,2]
[334791625,1723572640352,-454.196424,0.00013678,2]
[334791627,1723572640364,-454.196424,0.00013678,2]
[334791628,1723572640374,-785.570447,0.00013678,2]
[334791629,1723572640383,-785.570447,0.00013678,2]
[334791631,1723572640395,-2900.321425,0.00013688,2]
[334791632,1723572640405,-2900.321425,0.00013688,2]
[334791633,1723572640417,-151.0,0.00013688,2]
[334791634,1723572640428,-1266.960444,0.00013688,2]
[334791635,1723572640439,-1999.816746,0.00013688,2]
[334791636,1723572640449,-1266.960444,0.00013688,2]
[334791637,1723572640460,-1999.816746,0.00013688,2]
[334791638,1723572640472,-999.187815,0.00013688,2]
[334791639,1723572640482,-999.187815,0.00013688,2]
[334791640,1723572640493,-151.0,0.00013688,2]
[334791641,1723572640508,-1588.656889,0.00013688,2]
[334791642,1723572640519,-1588.656889,0.00013688,2]
[334791643,1723572640528,-151.0,0.00013688,2]
[334791644,1723572640539,-151.0,0.00013688,2]
[334791645,1723572640553,-1737.397437,0.00013688,2]
[334791646,1723572640564,-1737.397437,0.00013688,2]
[334791647,1723572640575,-415.160745,0.00013688,2]
[334791648,1723572640586,-415.160745,0.00013688,2]
[334791649,1723572640598,-187.745302,0.00013688,2]
[334791650,1723572640609,-187.745302,0.00013688,2]
[334791651,1723572640621,-748.268691,0.00013688,2]
[334791652,1723572640632,-748.268691,0.00013688,2]
[334791653,1723572640642,-151.0,0.00013688,2]
[334791654,1723572640653,-151.0,0.00013688,2]
[334791655,1723572640663,-151.0,0.00013688,2]
[334791656,1723572640674,-278.97115,0.00013688,2]
[334791657,1723572640685,-151.0,0.00013688,2]
[334791658,1723572640698,-151.0,0.00013688,2]
[334791659,1723572640709,-454.196424,0.00013688,2]
[334791660,1723572640718,-454.196424,0.00013688,2]
[334791661,1723572640729,-454.196424,0.00013688,2]
[334791662,1723572640742,-454.196424,0.00013688,2]
[334791663,1723572640753,-785.570447,0.00013688,2]
[334791664,1723572640763,-785.570447,0.00013688,2]
[334791665,1723572640775,-785.570447,0.00013688,2]
[334791666,1723572640785,-785.570447,0.00013688,2]
[334791667,1723572640795,-151.0,0.00013688,2]
[334791668,1723572640806,-391.16923445,0.00013698,2]
[334791669,1723572640817,-203.98296948,0.00013698,2]
[334791670,1723572640828,-500.0,0.00013698,2]
[334791671,1723572640839,-500.0,0.00013698,2]
[334791672,1723572640852,-500.0,0.00013698,2]
[334791673,1723572640861,-500.0,0.00013698,2]
[334791674,1723572640871,-500.0,0.00013698,2]
[334791675,1723572640881,-500.0,0.00013698,2]
[334791676,1723572640890,-500.0,0.00013698,2]
[334791677,1723572640901,-500.0,0.00013698,2]
[334791678,1723572640912,-500.0,0.00013698,2]
[334791679,1723572640925,-219.95753367,0.00013698,2]
[334791680,1723572640936,-500.0,0.00013698,2]
[334791681,1723572640947,-500.0,0.00013698,2]
[334791682,1723572640958,-500.0,0.00013698,2]
[334791683,1723572640969,-650.0,0.00013698,2]
[334791684,1723572640980,-500.0,0.00013698,2]
[334791685,1723572640992,-500.0,0.00013698,2]
[334791686,1723572641003,-500.0,0.00013698,2]
[334791687,1723572641014,-456.35957897,0.00013698,2]
[334791688,1723572641023,-505.22362471,0.00013698,2]
[334791689,1723572641033,-151.0,0.00013698,2]
[334791690,1723572641043,-151.0,0.00013698,2]
[334791691,1723572641053,-173.907888,0.00013698,2]
[334791692,1723572641062,-151.0,0.00013698,2]
[334791693,1723572641072,-151.0,0.00013698,2]
[334791694,1723572641082,-151.0,0.00013698,2]
[334791695,1723572641092,-151.0,0.00013698,2]
[334791696,1723572641101,-151.0,0.00013698,2]
[334791697,1723572641111,-500.0,0.00013698,2]
[334791698,1723572641120,-500.0,0.00013698,2]
[334791699,1723572641130,-558.11,0.00013698,2]
[334791700,1723572641140,-500.0,0.00013698,2]
[334791701,1723572641149,-500.0,0.00013698,2]
[334791702,1723572641159,-296.91350523,0.00013698,2]
[334791703,1723572641168,-500.0,0.00013698,2]
[334791704,1723572641178,-619.30758796,0.00013698,2]
[334791705,1723572641187,-500.0,0.00013698,2]
[334791706,1723572641197,-500.0,0.00013698,2]
[334791707,1723572641206,-710.78,0.00013698,2]
[334791708,1723572641216,-500.0,0.00013698,2]
[334791709,1723572641227,-508.89044468,0.00013698,2]
[334791710,1723572641237,-500.0,0.00013698,2]
[334791711,1723572641247,-500.0,0.00013698,2]
[334791712,1723572641257,-500.0,0.00013698,2]
[334791713,1723572641266,-500.0,0.00013698,2]
[334791714,1723572641276,-613.48,0.00013698,2]
[334791715,1723572641286,-500.0,0.00013698,2]
[334791716,1723572641299,-515.99551299,0.00013698,2]
[334791717,1723572641309,-505.59341651,0.00013698,2]
[334791718,1723572641321,-486.45266825,0.00013698,2]
[334791719,1723572641331,-500.0,0.00013698,2]
[334791720,1723572641340,-500.0,0.00013698,2]
[334791721,1723572641350,-161.539125,0.00013698,2]
[334791722,1723572641359,-161.539125,0.00013698,2]
[334791723,1723572641369,-161.539125,0.00013698,2]
[334791724,1723572641379,-161.539125,0.00013698,2]
[334791725,1723572641390,-161.539125,0.00013698,2]
[334791726,1723572641401,-161.539125,0.00013698,2]
[334791727,1723572641411,-500.0,0.00013698,2]
[334791728,1723572641422,-151.0,0.00013698,2]
[334791729,1723572641433,-151.0,0.00013698,2]
[334791730,1723572641443,-151.0,0.00013698,2]
[334791731,1723572641454,-500.0,0.00013698,2]
[334791732,1723572641465,-154.76012181,0.00013698,2]
[334791733,1723572641475,-500.0,0.00013698,2]
[334791734,1723572641485,-151.0,0.00013698,2]
[334791735,1723572641497,-151.0,0.00013698,2]
[334791736,1723572641508,-151.0,0.00013698,2]
[334791737,1723572641517,-151.0,0.00013698,2]
[334791738,1723572641527,-151.0,0.00013698,2]
[334791739,1723572641537,-151.0,0.00013698,2]
[334791740,1723572641548,-500.0,0.00013698,2]
[334791741,1723572641558,-500.0,0.00013698,2]
[334791742,1723572641568,-151.0,0.00013698,2]
[334791743,1723572641578,-151.0,0.00013698,2]
[334791744,1723572641589,-561.84,0.00013698,2]
[334791745,1723572641599,-500.0,0.00013698,2]
[334791746,1723572641609,-500.0,0.00013698,2]
[334791747,1723572641619,-500.0,0.00013698,2]
[334791748,1723572641629,-500.0,0.00013698,2]
[334791749,1723572641640,-500.0,0.00013698,2]
[334791750,1723572641651,-500.0,0.00013698,2]
[334791751,1723572641661,-512.14111745,0.00013698,2]
[334791752,1723572641672,-500.0,0.00013698,2]
[334791753,1723572641683,-500.0,0.00013698,2]
[334791754,1723572641696,-285.036668,0.00013698,2]
[334791755,1723572641706,-285.036668,0.00013698,2]
[334791756,1723572641718,-285.036668,0.00013698,2]
[334791757,1723572641729,-285.036668,0.00013698,2]
[334791758,1723572641740,-285.036668,0.00013698,2]
[334791759,1723572641752,-285.036668,0.00013698,2]
[334791760,1723572641762,-285.036668,0.00013698,2]
[334791761,1723572641773,-285.036668,0.00013698,2]
[334791762,1723572641782,-500.0,0.00013698,2]
[334791763,1723572641792,-500.0,0.00013698,2]
[334791764,1723572641804,-500.0,0.00013698,2]
[334791765,1723572641813,-500.0,0.00013698,2]
[334791766,1723572641823,-194.587962,0.00013698,2]
[334791767,1723572641833,-194.587962,0.00013698,2]
[334791768,1723572641854,-194.587962,0.00013698,2]
[334791769,1723572641864,-194.587962,0.00013698,2]
[334791770,1723572641874,-689.94,0.00013698,2]
[334791771,1723572641884,-194.587962,0.00013698,2]
[334791772,1723572641895,-194.587962,0.00013698,2]
[334791773,1723572641905,-194.587962,0.00013698,2]
[334791774,1723572641919,-194.587962,0.00013698,2]
[334791775,1723572641929,-151.0,0.00013698,2]
[334791776,1723572641939,-151.0,0.00013698,2]
[334791777,1723572641949,-151.0,0.00013698,2]
[334791778,1723572641960,-260.847234,0.00013698,2]
[334791779,1723572641970,-151.0,0.00013698,2]
[334791780,1723572641980,-151.0,0.00013698,2]
[334791781,1723572641989,-151.0,0.00013698,2]
[334791782,1723572641999,-151.0,0.00013698,2]
[334791783,1723572642009,-500.0,0.00013698,2]
[334791784,1723572642019,-211.727938,0.00013698,2]
[334791785,1723572642028,-211.727938,0.00013698,2]
[334791786,1723572642039,-211.727938,0.00013698,2]
[334791787,1723572642052,-211.727938,0.00013698,2]
[334791788,1723572642063,-211.727938,0.00013698,2]
[334791789,1723572642074,-211.727938,0.00013698,2]
[334791790,1723572642085,-211.727938,0.00013698,2]
[334791791,1723572642097,-211.727938,0.00013698,2]
[334791792,1723572642108,-1399.68,0.00013698,2]
[334791793,1723572642119,-500.0,0.00013698,2]
[334791794,1723572642131,-500.0,0.00013698,2]
[334791795,1723572642143,-151.0,0.00013698,2]
[334791796,1723572642154,-151.0,0.00013698,2]
[334791797,1723572642164,-151.0,0.00013698,2]
[334791798,1723572642175,-205.966269,0.00013698,2]
[334791799,1723572642187,-151.0,0.00013698,2]
[334791800,1723572642198,-151.0,0.00013698,2]
[334791801,1723572642209,-151.0,0.00013698,2]
[334791802,1723572642220,-151.0,0.00013698,2]
[334791803,1723572642230,-151.0,0.00013698,2]
[334791804,1723572642241,-159.795908,0.00013698,2]
[334791805,1723572642250,-500.0,0.00013698,2]
[334791806,1723572642261,-500.0,0.00013698,2]
[334791807,1723572642271,-151.0,0.00013698,2]
[334791808,1723572642280,-151.0,0.00013698,2]
[334791809,1723572642291,-975.7,0.00013698,2]
[334791810,1723572642302,-213.97388,0.00013698,2]
[334791811,1723572642312,-257.534103,0.00013698,2]
[334791812,1723572642327,-257.534103,0.00013698,2]
[334791813,1723572642336,-257.534103,0.00013698,2]
[334791814,1723572642345,-257.534103,0.00013698,2]
[334791815,1723572642355,-257.534103,0.00013698,2]
[334791816,1723572642365,-257.534103,0.00013698,2]
[334791817,1723572642375,-257.534103,0.00013698,2]
[334791818,1723572642384,-257.534103,0.00013698,2]
[334791819,1723572642393,-2816.972207,0.00013698,2]
[334791820,1723572642403,-2816.972207,0.00013698,2]
[334791821,1723572642412,-2816.972207,0.00013698,2]
[334791822,1723572642422,-2816.972207,0.00013698,2]
[334791823,1723572642431,-2816.972207,0.00013698,2]
[334791824,1723572642443,-2816.972207,0.00013698,2]
[334791825,1723572642456,-2816.972207,0.00013698,2]
[334791826,1723572642467,-2816.972207,0.00013698,2]
[334791827,1723572642479,-500.0,0.00013698,2]
[334791828,1723572642489,-500.0,0.00013698,2]
[334791829,1723572642502,-500.0,0.00013698,2]
[334791830,1723572642513,-500.0,0.00013698,2]
[334791831,1723572642523,-500.0,0.00013698,2]
[334791832,1723572642533,-500.0,0.00013698,2]
[334791833,1723572642543,-500.0,0.00013698,2]
[334791834,1723572642560,-204.230064,0.00013698,2]
[334791835,1723572642569,-204.230064,0.00013698,2]
[334791836,1723572642579,-204.230064,0.00013698,2]
[334791837,1723572642589,-281.301952,0.00013698,2]
[334791838,1723572642599,-204.230064,0.00013698,2]
[334791839,1723572642608,-281.301952,0.00013698,2]
[334791840,1723572642618,-204.230064,0.00013698,2]
[334791841,1723572642627,-281.301952,0.00013698,2]
[334791842,1723572642637,-281.301952,0.00013698,2]
[334791843,1723572642648,-281.301952,0.00013698,2]
[334791844,1723572642660,-204.230064,0.00013698,2]
[334791845,1723572642672,-204.230064,0.00013698,2]
[334791846,1723572642684,-500.0,0.00013698,2]
[334791847,1723572642694,-204.230064,0.00013698,2]
[334791848,1723572642704,-204.230064,0.00013698,2]
[334791849,1723572642715,-204.230064,0.00013698,2]
[334791850,1723572642727,-281.301952,0.00013698,2]
[334791851,1723572642737,-281.301952,0.00013698,2]
[334791852,1723572642747,-281.301952,0.00013698,2]
[334791853,1723572642759,-281.301952,0.00013698,2]
[334791854,1723572642770,-281.301952,0.00013698,2]
[334791855,1723572642780,-500.0,0.00013698,2]
[334791856,1723572642790,-500.0,0.00013698,2]
[334791857,1723572642800,-1171.370873,0.00013698,2]
[334791858,1723572642810,-1171.370873,0.00013698,2]
[334791859,1723572642822,-1171.370873,0.00013698,2]
[334791860,1723572642831,-1171.370873,0.00013698,2]
[334791872,1723572643036,-500.0,0.00013698,2]
[334791874,1723572643046,-500.0,0.00013698,2]
[334791875,1723572643058,-2900.321425,0.00013698,2]
[334791877,1723572643067,-2900.321425,0.00013698,2]
[334791878,1723572643076,-2900.321425,0.00013698,2]
[334791879,1723572643085,-2900.321425,0.00013698,2]
[334791880,1723572643096,-2900.321425,0.00013698,2]
[334791881,1723572643106,-2900.321425,0.00013698,2]
[334791882,1723572643115,-2900.321425,0.00013698,2]
[334791884,1723572643126,-500.0,0.00013698,2]
[334791886,1723572643135,-2900.321425,0.00013698,2]
[334791888,1723572643145,-2900.321425,0.00013698,2]
[334791889,1723572643155,-2900.321425,0.00013698,2]
[334791890,1723572643165,-2900.321425,0.00013698,2]
[334791891,1723572643175,-2900.321425,0.00013698,2]
[334791892,1723572643184,-500.0,0.00013698,2]
[334791893,1723572643193,-846.844937,0.00013698,2]
[334791894,1723572643203,-500.0,0.00013698,2]
[334791895,1723572643212,-846.844937,0.00013698,2]
[334791896,1723572643221,-846.844937,0.00013698,2]
[334791897,1723572643231,-846.844937,0.00013698,2]
[334791898,1723572643240,-846.844937,0.00013698,2]
[334791899,1723572643249,-500.0,0.00013698,2]
[334791900,1723572643259,-846.844937,0.00013698,2]
[334791901,1723572643269,-846.844937,0.00013698,2]
[334791902,1723572643278,-846.844937,0.00013698,2]
[334791903,1723572643287,-846.844937,0.00013698,2]
[334791904,1723572643297,-846.844937,0.00013698,2]
[334791905,1723572643308,-151.0,0.00013698,2]
[334791907,1723572643317,-601.1,0.00013698,2]
[334791908,1723572643327,-151.0,0.00013698,2]
[334791909,1723572643336,-151.0,0.00013698,2]
[334791911,1723572643346,-151.0,0.00013698,2]
[334791913,1723572643355,-151.0,0.00013698,2]
[334791915,1723572643365,-367.12412063,0.00013698,2]
[334791917,1723572643374,-670.23,0.00013698,2]
[334791919,1723572643384,-500.0,0.00013698,2]
[334791921,1723572643394,-500.0,0.00013698,2]
[334791923,1723572643403,-155.636368,0.00013698,2]
[334791925,1723572643414,-155.636368,0.00013698,2]
[334791927,1723572643424,-155.636368,0.00013698,2]
[334791929,1723572643434,-155.636368,0.00013698,2]
[334791932,1723572643444,-155.636368,0.00013698,2]
[334791934,1723572643453,-500.0,0.00013698,2]
[334791935,1723572643463,-500.0,0.00013698,2]
[334791937,1723572643472,-155.636368,0.00013698,2]
[334791939,1723572643481,-500.0,0.00013698,2]
[334791940,1723572643491,-155.636368,0.00013698,2]
[334791942,1723572643501,-500.0,0.00013698,2]
[334791944,1723572643510,-155.636368,0.00013698,2]
[334791946,1723572643519,-155.636368,0.00013698,2]
[334791947,1723572643529,-155.636368,0.00013698,2]
[334791948,1723572643538,-500.0,0.00013698,2]
[334791949,1723572643548,-500.0,0.00013698,2]
[334791950,1723572643559,-500.0,0.00013698,2]
[334791951,1723572643569,-500.0,0.00013698,2]
[334791952,1723572643579,-151.0,0.00013698,2]
[334791953,1723572643589,-151.0,0.00013698,2]
[334791954,1723572643598,-500.0,0.00013698,2]
[334791955,1723572643607,-161.747904,0.00013698,2]
[334791956,1723572643617,-500.0,0.00013698,2]
[334791957,1723572643626,-500.0,0.00013698,2]
[334791958,1723572643636,-500.0,0.00013698,2]
[334791959,1723572643645,-536.88,0.00013698,2]
[334791960,1723572643655,-659.69,0.00013698,2]
[334791961,1723572643664,-1337.29,0.00013698,2]
[334791962,1723572643674,-2827.39,0.00013698,2]
[334791963,1723572643683,-1266.960444,0.00013698,2]
[334791964,1723572643692,-1266.960444,0.00013698,2]
[334791965,1723572643702,-1266.960444,0.00013698,2]
[334791966,1723572643711,-1266.960444,0.00013698,2]
[334791967,1723572643720,-1266.960444,0.00013698,2]
[334791968,1723572643729,-500.0,0.00013698,2]
[334791969,1723572643739,-1999.816746,0.00013698,2]
[334791970,1723572643749,-1266.960444,0.00013698,2]
[334791971,1723572643759,-1999.816746,0.00013698,2]
[334791972,1723572643768,-876.96,0.00013698,2]
[334791973,1723572643778,-1266.960444,0.00013698,2]
[334791974,1723572643788,-1999.816746,0.00013698,2]
[334791975,1723572643798,-1266.960444,0.00013698,2]
[334791976,1723572643813,-1999.816746,0.00013698,2]
[334791977,1723572643822,-1266.960444,0.00013698,2]
[334791978,1723572643832,-1999.816746,0.00013698,2]
[334791979,1723572643842,-1266.960444,0.00013698,2]
[334791980,1723572643852,-1999.816746,0.00013698,2]
[334791981,1723572643862,-1999.816746,0.00013698,2]
[334791982,1723572643872,-1999.816746,0.00013698,2]
[334791983,1723572643881,-1999.816746,0.00013698,2]
[334791984,1723572643891,-915.89,0.00013698,2]
[334791985,1723572643900,-1999.816746,0.00013698,2]
[334791986,1723572643910,-3066.56,0.00013698,2]
[334791987,1723572643924,-999.187815,0.00013698,2]
[334791988,1723572643934,-999.187815,0.00013698,2]
[334791989,1723572643944,-730.3,0.00013698,2]
[334791990,1723572643955,-500.0,0.00013698,2]
[334791991,1723572643964,-999.187815,0.00013698,2]
[334791992,1723572643974,-999.187815,0.00013698,2]
[334791993,1723572643983,-999.187815,0.00013698,2]
[334791994,1723572643995,-999.187815,0.00013698,2]
[334791996,1723572644005,-999.187815,0.00013698,2]
[334791998,1723572644015,-999.187815,0.00013698,2]
[334791999,1723572644024,-999.187815,0.00013698,2]
[334792000,1723572644033,-999.187815,0.00013698,2]
[334792001,1723572644043,-772.82,0.00013698,2]
[334792002,1723572644054,-632.5,0.00013698,2]
[334792003,1723572644063,-151.0,0.00013698,2]
[334792004,1723572644072,-151.0,0.00013698,2]
[334792005,1723572644081,-151.0,0.00013698,2]
[334792006,1723572644092,-500.0,0.00013698,2]
[334792007,1723572644101,-500.0,0.00013698,2]
[334792008,1723572644111,-500.0,0.00013698,2]
[334792009,1723572644121,-1082.88,0.00013698,2]
[334792010,1723572644132,-1588.656889,0.00013698,2]
[334792011,1723572644143,-1588.656889,0.00013698,2]
[334792012,1723572644152,-1588.656889,0.00013698,2]
[334792013,1723572644163,-1588.656889,0.00013698,2]
[334792014,1723572644172,-500.0,0.00013698,2]
[334792015,1723572644182,-1588.656889,0.00013698,2]
[334792016,1723572644191,-3032.99,0.00013698,2]
[334792017,1723572644200,-1588.656889,0.00013698,2]